[Event "*** SCC Grand Prix: Titled Tuesday Blitz"]
[Site "Chess.com"]
[Date "2020.06.09"]
[Round "3"]
[White "Lion-Al-Messi"]
[Black "Kimster98"]
[Result "1-0"]
[WhiteElo "2403"]
[BlackElo "2569"]
[TimeControl "180+1"]
[EndTime "9:30:36 PDT"]
[Termination "Lion-Al-Messi won by checkmate"]

1. e4 {[%clk 0:03:00.9]} 1... d5 {[%clk 0:02:56.4]} 2. exd5 {[%clk 0:03:00.3]}
2... Qxd5 {[%clk 0:02:57.3]} 3. Nc3 {[%clk 0:03:00.7]} 3... Qd8 {[%clk
0:02:57.9]} 4. Nf3 {[%clk 0:02:59.6]} 4... Nf6 {[%clk 0:02:58.8]} 5. d4 {[%clk
0:02:59.4]} 5... Bg4 {[%clk 0:02:59.1]} 6. Be2 {[%clk 0:02:59.2]} 6... Bxf3
{[%clk 0:02:59.2]} 7. Bxf3 {[%clk 0:02:59.1]} 7... c6 {[%clk 0:02:59.4]} 8. O-O
{[%clk 0:02:58.9]} 8... e6 {[%clk 0:02:57.7]} 9. Bf4 {[%clk 0:02:57.5]} 9... Bd6
{[%clk 0:02:55.9]} 10. Qd2 {[%clk 0:02:57.8]} 10... Bxf4 {[%clk 0:02:51]} 11.
Qxf4 {[%clk 0:02:58.7]} 11... O-O {[%clk 0:02:51.4]} 12. Rfe1 {[%clk 0:02:55.9]}
12... Nbd7 {[%clk 0:02:49.8]} 13. Rad1 {[%clk 0:02:55.3]} 13... Nd5 {[%clk
0:02:48.2]} 14. Qg3 {[%clk 0:02:53.8]} 14... Nxc3 {[%clk 0:02:44.4]} 15. bxc3
{[%clk 0:02:54.7]} 15... Nf6 {[%clk 0:02:44.6]} 16. c4 {[%clk 0:02:50.3]} 16...
Qb8 {[%clk 0:02:43.4]} 17. Qe5 {[%clk 0:02:43]} 17... Rd8 {[%clk 0:02:39.8]} 18.
h3 {[%clk 0:02:32.6]} 18... Qxe5 {[%clk 0:02:24.2]} 19. Rxe5 {[%clk 0:02:27.7]}
19... Rd6 {[%clk 0:02:20]} 20. c3 {[%clk 0:02:27]} 20... Rad8 {[%clk 0:02:14.2]}
21. Rb1 {[%clk 0:02:25.6]} 21... R6d7 {[%clk 0:02:13.9]} 22. a4 {[%clk
0:02:22.7]} 22... Rc7 {[%clk 0:02:09]} 23. a5 {[%clk 0:02:19.4]} 23... Nd7
{[%clk 0:02:07.6]} 24. Re2 {[%clk 0:02:19]} 24... Rb8 {[%clk 0:02:05.1]} 25.
Reb2 {[%clk 0:02:17]} 25... b6 {[%clk 0:02:05]} 26. axb6 {[%clk 0:01:57.5]}
26... axb6 {[%clk 0:02:05.9]} 27. c5 {[%clk 0:01:57.4]} 27... b5 {[%clk
0:01:52.9]} 28. c4 {[%clk 0:01:56.6]} 28... b4 {[%clk 0:01:35.9]} 29. Rxb4
{[%clk 0:01:55.8]} 29... Rxb4 {[%clk 0:01:36.1]} 30. Rxb4 {[%clk 0:01:56.7]}
30... Kf8 {[%clk 0:01:34.5]} 31. Ra4 {[%clk 0:01:42]} 31... e5 {[%clk
0:01:27.9]} 32. dxe5 {[%clk 0:00:45.5]} 32... Nxe5 {[%clk 0:01:28.8]} 33. Be4
{[%clk 0:00:45.1]} 33... Nd7 {[%clk 0:01:20.7]} 34. Ra5 {[%clk 0:00:35.4]} 34...
Ke7 {[%clk 0:01:18]} 35. f4 {[%clk 0:00:34.9]} 35... g6 {[%clk 0:01:17.7]} 36.
g4 {[%clk 0:00:32.9]} 36... Ke6 {[%clk 0:01:14]} 37. Kf2 {[%clk 0:00:31.4]}
37... f5 {[%clk 0:01:14.1]} 38. gxf5+ {[%clk 0:00:31]} 38... gxf5 {[%clk
0:01:15]} 39. Bf3 {[%clk 0:00:29.8]} 39... Nf6 {[%clk 0:01:07.2]} 40. Ke3 {[%clk
0:00:23.4]} 40... Ng8 {[%clk 0:00:54.9]} 41. Ra8 {[%clk 0:00:20.2]} 41... Ne7
{[%clk 0:00:53.8]} 42. Rh8 {[%clk 0:00:20.1]} 42... Ng6 {[%clk 0:00:53.9]} 43.
Rd8 {[%clk 0:00:18.3]} 43... Ne7 {[%clk 0:00:50.4]} 44. Rd6+ {[%clk 0:00:17.9]}
44... Kf7 {[%clk 0:00:50.8]} 45. Kd4 {[%clk 0:00:18.2]} 45... Ng6 {[%clk
0:00:50]} 46. Rxc6 {[%clk 0:00:12.3]} 46... Re7 {[%clk 0:00:50.3]} 47. Rd6
{[%clk 0:00:09.3]} 47... Nxf4 {[%clk 0:00:49.2]} 48. c6 {[%clk 0:00:09]} 48...
Ne6+ {[%clk 0:00:49.1]} 49. Kc3 {[%clk 0:00:07.9]} 49... Nc7 {[%clk 0:00:48.1]}
50. Bd5+ {[%clk 0:00:07.8]} 50... Ke8 {[%clk 0:00:44.8]} 51. Rf6 {[%clk
0:00:07.6]} 51... Re5 {[%clk 0:00:42.3]} 52. Kd4 {[%clk 0:00:07.7]} 52... Re1
{[%clk 0:00:42]} 53. Rxf5 {[%clk 0:00:06.6]} 53... Na6 {[%clk 0:00:37.3]} 54.
Re5+ {[%clk 0:00:06.3]} 54... Rxe5 {[%clk 0:00:36.4]} 55. Kxe5 {[%clk
0:00:07.2]} 55... Ke7 {[%clk 0:00:37.1]} 56. Kf5 {[%clk 0:00:07.4]} 56... Nc7
{[%clk 0:00:35.4]} 57. Kg5 {[%clk 0:00:07.3]} 57... Ne8 {[%clk 0:00:33.6]} 58.
Kh6 {[%clk 0:00:07.4]} 58... Nf6 {[%clk 0:00:34.2]} 59. h4 {[%clk 0:00:07.3]}
59... Kd6 {[%clk 0:00:32.1]} 60. Kg7 {[%clk 0:00:07.2]} 60... Nh5+ {[%clk
0:00:30.6]} 61. Kxh7 {[%clk 0:00:05.9]} 61... Nf4 {[%clk 0:00:31.5]} 62. Kg7
{[%clk 0:00:04.5]} 62... Nh5+ {[%clk 0:00:28.4]} 63. Kg6 {[%clk 0:00:04.1]}
63... Ng3 {[%clk 0:00:29.3]} 64. h5 {[%clk 0:00:03.4]} 64... Ne2 {[%clk
0:00:30.2]} 65. h6 {[%clk 0:00:03.6]} 65... Nf4+ {[%clk 0:00:31.1]} 66. Kg7
{[%clk 0:00:03.7]} 66... Nh5+ {[%clk 0:00:28.6]} 67. Kf7 {[%clk 0:00:03.2]}
67... Nf4 {[%clk 0:00:21.8]} 68. h7 {[%clk 0:00:03.5]} 68... Nh3 {[%clk
0:00:22.4]} 69. h8=Q {[%clk 0:00:03.1]} 69... Ng5+ {[%clk 0:00:23.3]} 70. Kg7
{[%clk 0:00:02.8]} 70... Ke5 {[%clk 0:00:22.6]} 71. Qh6 {[%clk 0:00:03.7]} 71...
Kf4 {[%clk 0:00:23.5]} 72. Qf6+ {[%clk 0:00:03.5]} 72... Kg4 {[%clk 0:00:23.6]}
73. Qg6 {[%clk 0:00:04.4]} 73... Kf4 {[%clk 0:00:23.7]} 74. Qxg5+ {[%clk
0:00:03.8]} 74... Kxg5 {[%clk 0:00:24.6]} 75. c7 {[%clk 0:00:04.6]} 75... Kf4
{[%clk 0:00:25.5]} 76. c8=Q {[%clk 0:00:04.5]} 76... Ke3 {[%clk 0:00:26.4]} 77.
Qe6+ {[%clk 0:00:04.6]} 77... Kd4 {[%clk 0:00:27.3]} 78. Qe4+ {[%clk 0:00:04.7]}
78... Kc3 {[%clk 0:00:28.2]} 79. Qe3+ {[%clk 0:00:04.5]} 79... Kb4 {[%clk
0:00:29.1]} 80. c5 {[%clk 0:00:05.4]} 80... Kb5 {[%clk 0:00:29.2]} 81. c6 {[%clk
0:00:06.3]} 81... Ka5 {[%clk 0:00:29.2]} 82. c7 {[%clk 0:00:07.2]} 82... Kb5
{[%clk 0:00:29.3]} 83. Qc3 {[%clk 0:00:06.6]} 83... Kb6 {[%clk 0:00:29.2]} 84.
Qc6+ {[%clk 0:00:06.7]} 84... Ka5 {[%clk 0:00:29.3]} 85. Qb7 {[%clk 0:00:06.9]}
85... Ka4 {[%clk 0:00:29.4]} 86. c8=Q {[%clk 0:00:06.9]} 86... Ka3 {[%clk
0:00:30.3]} 87. Qca8# {[%clk 0:00:07]} 1-0

[Event "*** SCC Grand Prix: Titled Tuesday Blitz"]
[Site "Chess.com"]
[Date "2020.06.09"]
[Round "3"]
[White "Rinas_Oleg"]
[Black "Omk124"]
[Result "0-1"]
[WhiteElo "2214"]
[BlackElo "2425"]
[TimeControl "180+1"]
[EndTime "9:30:40 PDT"]
[Termination "Omk124 won on time"]

1. e4 {[%clk 0:03:00.9]} 1... g6 {[%clk 0:02:59.8]} 2. d4 {[%clk 0:02:59.2]}
2... Bg7 {[%clk 0:02:59.9]} 3. Ne2 {[%clk 0:02:54.4]} 3... c6 {[%clk 0:02:58.5]}
4. Nbc3 {[%clk 0:02:51.1]} 4... d6 {[%clk 0:02:54.3]} 5. g3 {[%clk 0:02:49.8]}
5... Nf6 {[%clk 0:02:52.1]} 6. Bg2 {[%clk 0:02:49.2]} 6... O-O {[%clk
0:02:51.9]} 7. O-O {[%clk 0:02:48.9]} 7... Nbd7 {[%clk 0:02:50.7]} 8. h3 {[%clk
0:02:48.1]} 8... e5 {[%clk 0:02:50.6]} 9. Be3 {[%clk 0:02:47.8]} 9... Qe7 {[%clk
0:02:50.5]} 10. Qd2 {[%clk 0:02:45.4]} 10... Rd8 {[%clk 0:02:50.1]} 11. Bh6
{[%clk 0:02:39.7]} 11... Bh8 {[%clk 0:02:49]} 12. Rad1 {[%clk 0:02:31.8]} 12...
Nb6 {[%clk 0:02:47.2]} 13. b3 {[%clk 0:02:29.3]} 13... Be6 {[%clk 0:02:44.7]}
14. f4 {[%clk 0:02:20.9]} 14... Re8 {[%clk 0:02:16.7]} 15. f5 {[%clk 0:02:10.8]}
15... Bd7 {[%clk 0:02:16.4]} 16. g4 {[%clk 0:02:03]} 16... Rad8 {[%clk
0:02:15.6]} 17. g5 {[%clk 0:01:57.6]} 17... Nh5 {[%clk 0:02:15.8]} 18. f6 {[%clk
0:01:57.2]} 18... Nxf6 {[%clk 0:02:03.9]} 19. gxf6 {[%clk 0:01:55.3]} 19... Bxf6
{[%clk 0:02:04.8]} 20. Rxf6 {[%clk 0:01:46.6]} 20... Qxf6 {[%clk 0:02:05.2]} 21.
Bg5 {[%clk 0:01:46]} 21... Qg7 {[%clk 0:02:05.8]} 22. Bxd8 {[%clk 0:01:45]}
22... Rxd8 {[%clk 0:02:06.7]} 23. dxe5 {[%clk 0:01:42.7]} 23... dxe5 {[%clk
0:02:03.3]} 24. Qd6 {[%clk 0:01:34.3]} 24... Re8 {[%clk 0:02:02.1]} 25. a4
{[%clk 0:01:31.4]} 25... Be6 {[%clk 0:01:57.2]} 26. a5 {[%clk 0:01:27.4]} 26...
Nc8 {[%clk 0:01:57.1]} 27. Qc7 {[%clk 0:01:25.5]} 27... Qh6 {[%clk 0:01:23.4]}
28. Rd8 {[%clk 0:01:21.3]} 28... Rxd8 {[%clk 0:01:20.1]} 29. Qxd8+ {[%clk
0:01:21.1]} 29... Kg7 {[%clk 0:01:21]} 30. Qd3 {[%clk 0:01:20.6]} 30... a6
{[%clk 0:01:17.1]} 31. Kh2 {[%clk 0:01:17.4]} 31... Qg5 {[%clk 0:01:17]} 32. Qg3
{[%clk 0:01:15]} 32... Qf6 {[%clk 0:01:15]} 33. Qf3 {[%clk 0:01:09.1]} 33... Qg5
{[%clk 0:01:14.8]} 34. Qg3 {[%clk 0:01:02.9]} 34... Qf6 {[%clk 0:01:13.8]} 35.
Bf3 {[%clk 0:01:02.7]} 35... Ne7 {[%clk 0:01:09]} 36. Bg4 {[%clk 0:00:59.1]}
36... Bxg4 {[%clk 0:00:57.8]} 37. hxg4 {[%clk 0:00:58.6]} 37... Qg5 {[%clk
0:00:57]} 38. Kh3 {[%clk 0:00:50.5]} 38... Ng8 {[%clk 0:00:56.1]} 39. Ng1 {[%clk
0:00:48.3]} 39... Nf6 {[%clk 0:00:56.1]} 40. Nf3 {[%clk 0:00:46.5]} 40... Qe3
{[%clk 0:00:55.6]} 41. Nxe5 {[%clk 0:00:43.8]} 41... Qc5 {[%clk 0:00:49.2]} 42.
Nc4 {[%clk 0:00:40.3]} 42... Qd4 {[%clk 0:00:48.1]} 43. e5 {[%clk 0:00:38.9]}
43... Nxg4 {[%clk 0:00:46.3]} 44. Qxg4 {[%clk 0:00:31.4]} 44... Qxc3+ {[%clk
0:00:46.4]} 45. Qg3 {[%clk 0:00:27.3]} 45... Qxc2 {[%clk 0:00:45]} 46. Qf3
{[%clk 0:00:25.6]} 46... Qb1 {[%clk 0:00:20.4]} 47. Nd6 {[%clk 0:00:22.5]} 47...
Kh6 {[%clk 0:00:17.3]} 48. Qf4+ {[%clk 0:00:20]} 48... Kg7 {[%clk 0:00:15.4]}
49. Qxf7+ {[%clk 0:00:19.6]} 49... Kh6 {[%clk 0:00:16.1]} 50. Qf4+ {[%clk
0:00:19]} 50... Kg7 {[%clk 0:00:16.4]} 51. Ne8+ {[%clk 0:00:18.2]} 51... Kg8
{[%clk 0:00:15.5]} 52. Nf6+ {[%clk 0:00:17.2]} 52... Kg7 {[%clk 0:00:16.1]} 53.
Ng4 {[%clk 0:00:16]} 53... Qxb3+ {[%clk 0:00:15.5]} 54. Qg3 {[%clk 0:00:15.4]}
54... Qe6 {[%clk 0:00:15.2]} 55. Qf4 {[%clk 0:00:13.9]} 55... h5 {[%clk
0:00:15.3]} 56. Qh6+ {[%clk 0:00:12.5]} 56... Kf7 {[%clk 0:00:13.6]} 57. Qh7+
{[%clk 0:00:12]} 57... Ke8 {[%clk 0:00:14]} 58. Qh8+ {[%clk 0:00:11.7]} 58...
Kd7 {[%clk 0:00:14.4]} 59. Qg7+ {[%clk 0:00:11.3]} 59... Kc8 {[%clk 0:00:14.1]}
60. Qf8+ {[%clk 0:00:10.7]} 60... Kc7 {[%clk 0:00:14.2]} 61. Qd6+ {[%clk
0:00:10.7]} 61... Qxd6 {[%clk 0:00:14.7]} 62. exd6+ {[%clk 0:00:10.3]} 62...
Kxd6 {[%clk 0:00:15.6]} 63. Ne3 {[%clk 0:00:10.1]} 63... c5 {[%clk 0:00:16.5]}
64. Kh4 {[%clk 0:00:09.8]} 64... Ke5 {[%clk 0:00:16.3]} 65. Kg5 {[%clk
0:00:09.2]} 65... Kd4 {[%clk 0:00:16.8]} 66. Nc2+ {[%clk 0:00:08.3]} 66... Kd3
{[%clk 0:00:16.8]} 67. Na3 {[%clk 0:00:06.5]} 67... c4 {[%clk 0:00:16.9]} 68.
Kxg6 {[%clk 0:00:06.5]} 68... h4 {[%clk 0:00:16.6]} 69. Kf5 {[%clk 0:00:04.2]}
69... h3 {[%clk 0:00:16.9]} 70. Kf4 {[%clk 0:00:03.1]} 70... h2 {[%clk
0:00:17.4]} 0-1

[Event "*** SCC Grand Prix: Titled Tuesday Blitz"]
[Site "Chess.com"]
[Date "2020.06.09"]
[Round "3"]
[White "Flawless_Fighter"]
[Black "Anton_Demchenko"]
[Result "0-1"]
[WhiteElo "2614"]
[BlackElo "2816"]
[TimeControl "180+1"]
[EndTime "9:30:41 PDT"]
[Termination "Anton_Demchenko won by resignation"]

1. e4 {[%clk 0:03:00.9]} 1... e5 {[%clk 0:03:00]} 2. Nf3 {[%clk 0:03:01.3]} 2...
Nc6 {[%clk 0:03:00.6]} 3. Bb5 {[%clk 0:03:01.6]} 3... a6 {[%clk 0:03:00.8]} 4.
Ba4 {[%clk 0:03:02]} 4... Nge7 {[%clk 0:03:01.3]} 5. O-O {[%clk 0:03:00.4]} 5...
Ng6 {[%clk 0:03:00.9]} 6. c3 {[%clk 0:02:59.1]} 6... d6 {[%clk 0:03:00.9]} 7. d4
{[%clk 0:02:59.8]} 7... Bd7 {[%clk 0:03:01.5]} 8. Re1 {[%clk 0:02:58.8]} 8...
Be7 {[%clk 0:03:01.6]} 9. c4 {[%clk 0:02:51.9]} 9... b5 {[%clk 0:02:54.2]} 10.
cxb5 {[%clk 0:02:46.5]} 10... Nxd4 {[%clk 0:02:54.5]} 11. Nxd4 {[%clk
0:02:44.7]} 11... exd4 {[%clk 0:02:55.4]} 12. bxa6 {[%clk 0:02:40.4]} 12... c5
{[%clk 0:02:55.8]} 13. Nd2 {[%clk 0:02:24.1]} 13... O-O {[%clk 0:02:53.5]} 14.
Bxd7 {[%clk 0:02:19.6]} 14... Qxd7 {[%clk 0:02:53.8]} 15. Nc4 {[%clk 0:02:19.6]}
15... Rxa6 {[%clk 0:02:51.2]} 16. Bd2 {[%clk 0:02:13.9]} 16... Rfa8 {[%clk
0:02:47.8]} 17. a3 {[%clk 0:02:11.3]} 17... Ne5 {[%clk 0:02:46]} 18. Qc2 {[%clk
0:01:59.2]} 18... Qb5 {[%clk 0:02:37.4]} 19. Nxe5 {[%clk 0:01:57.8]} 19... dxe5
{[%clk 0:02:37.3]} 20. Rac1 {[%clk 0:01:55.9]} 20... Rb6 {[%clk 0:02:32.9]} 21.
b4 {[%clk 0:01:44.8]} 21... cxb4 {[%clk 0:02:33]} 22. Bxb4 {[%clk 0:01:35.9]}
22... Bxb4 {[%clk 0:02:31.9]} 23. axb4 {[%clk 0:01:36.8]} 23... h6 {[%clk
0:02:16.4]} 24. Qc5 {[%clk 0:01:35]} 24... f6 {[%clk 0:02:00.6]} 25. g3 {[%clk
0:01:30.1]} 25... Kh7 {[%clk 0:01:55.8]} 26. Rc4 {[%clk 0:01:24.2]} 26... Rab8
{[%clk 0:01:52.1]} 27. h4 {[%clk 0:01:19.1]} 27... Qd7 {[%clk 0:01:51.3]} 28.
Rb1 {[%clk 0:01:12.1]} 28... Rb5 {[%clk 0:01:41.6]} 29. Qc7 {[%clk 0:01:10.7]}
29... Qxc7 {[%clk 0:01:41.9]} 30. Rxc7 {[%clk 0:01:11.6]} 30... Rxb4 {[%clk
0:01:42.8]} 31. Rxb4 {[%clk 0:01:11.9]} 31... Rxb4 {[%clk 0:01:42.9]} 32. Rd7
{[%clk 0:01:10.7]} 32... h5 {[%clk 0:01:38.6]} 33. Kg2 {[%clk 0:01:10.1]} 33...
Rb3 {[%clk 0:01:30.8]} 34. Kf1 {[%clk 0:01:07.1]} 34... Kg6 {[%clk 0:01:17]} 35.
Ke2 {[%clk 0:01:07.1]} 35... Ra3 {[%clk 0:01:16.5]} 36. Kd2 {[%clk 0:01:06.2]}
36... Ra2+ {[%clk 0:01:16.6]} 37. Ke1 {[%clk 0:01:05.7]} 37... Kh6 {[%clk
0:01:16.9]} 38. Kf1 {[%clk 0:01:05.2]} 38... Kh7 {[%clk 0:01:10.2]} 39. Kg2
{[%clk 0:01:04.6]} 39... Kg8 {[%clk 0:01:09.6]} 40. Kf3 {[%clk 0:01:00.1]} 40...
Ra8 {[%clk 0:01:05.5]} 41. Ke2 {[%clk 0:00:59.1]} 41... Kf8 {[%clk 0:01:02.5]}
42. Kd3 {[%clk 0:00:39.4]} 42... Ra3+ {[%clk 0:01:02.1]} 43. Ke2 {[%clk
0:00:38.9]} 43... Rc3 {[%clk 0:00:57]} 44. Kd2 {[%clk 0:00:37.6]} 44... Rc8
{[%clk 0:00:56.3]} 45. Ke2 {[%clk 0:00:37.8]} 45... Re8 {[%clk 0:00:56.5]} 46.
Kd3 {[%clk 0:00:36.6]} 46... Re7 {[%clk 0:00:57]} 47. Rd8+ {[%clk 0:00:34.6]}
47... Kf7 {[%clk 0:00:57.3]} 48. f4 {[%clk 0:00:35.3]} 48... Rc7 {[%clk
0:00:52.3]} 49. Rd5 {[%clk 0:00:23.3]} 49... Rc3+ {[%clk 0:00:51.7]} 50. Ke2
{[%clk 0:00:23.6]} 50... Ke6 {[%clk 0:00:52.6]} 51. Kf2 {[%clk 0:00:20.6]} 51...
Re3 {[%clk 0:00:49.1]} 52. fxe5 {[%clk 0:00:16.7]} 52... fxe5 {[%clk 0:00:49.2]}
53. Ra5 {[%clk 0:00:17.2]} 53... Rxe4 {[%clk 0:00:48.7]} 54. Ra6+ {[%clk
0:00:17.2]} 54... Kf5 {[%clk 0:00:42.2]} 55. Ra7 {[%clk 0:00:17.7]} 55... Rg4
{[%clk 0:00:38.7]} 56. Rf7+ {[%clk 0:00:16.7]} 56... Ke4 {[%clk 0:00:39.2]} 57.
Rf8 {[%clk 0:00:15.8]} 57... Kd3 {[%clk 0:00:39.1]} 58. Rh8 {[%clk 0:00:15.6]}
58... g6 {[%clk 0:00:39.1]} 59. Ra8 {[%clk 0:00:14.4]} 59... g5 {[%clk
0:00:23.3]} 60. Ra3+ {[%clk 0:00:14.6]} 60... Ke4 {[%clk 0:00:23.3]} 61. hxg5
{[%clk 0:00:14]} 61... Rxg5 {[%clk 0:00:24.2]} 62. Ra8 {[%clk 0:00:12.4]} 62...
Rf5+ {[%clk 0:00:22.6]} 63. Ke2 {[%clk 0:00:12.2]} 63... d3+ {[%clk 0:00:22.9]}
64. Kd2 {[%clk 0:00:12.5]} 64... Rf2+ {[%clk 0:00:23.1]} 65. Ke1 {[%clk
0:00:13.3]} 65... Ke3 {[%clk 0:00:21]} 66. Ra3 {[%clk 0:00:10.9]} 66... e4
{[%clk 0:00:19.9]} 67. g4 {[%clk 0:00:11.2]} 67... Rg2 {[%clk 0:00:18.9]} 68.
Kf1 {[%clk 0:00:11.2]} 68... Rxg4 {[%clk 0:00:19.1]} 69. Ra1 {[%clk 0:00:11.3]}
69... h4 {[%clk 0:00:16.9]} 70. Re1+ {[%clk 0:00:11.6]} 70... Kd4 {[%clk
0:00:17.4]} 71. Ra1 {[%clk 0:00:11]} 71... h3 {[%clk 0:00:17.5]} 72. Ra4+ {[%clk
0:00:11.1]} 72... Ke3 {[%clk 0:00:17.9]} 73. Ra2 {[%clk 0:00:11.8]} 73... Rg2
{[%clk 0:00:16]} 74. Ra8 {[%clk 0:00:10.7]} 74... Rf2+ {[%clk 0:00:16.3]} 75.
Kg1 {[%clk 0:00:10.5]} 75... Rc2 {[%clk 0:00:10.9]} 76. Re8 {[%clk 0:00:08.5]}
76... d2 {[%clk 0:00:10.9]} 77. Rd8 {[%clk 0:00:08]} 77... Rc1+ {[%clk
0:00:11.2]} 78. Kh2 {[%clk 0:00:08.7]} 78... d1=Q {[%clk 0:00:11.2]} 0-1

[Event "*** SCC Grand Prix: Titled Tuesday Blitz"]
[Site "Chess.com"]
[Date "2020.06.09"]
[Round "3"]
[White "Igor_Lysyj"]
[Black "LuckSlayeer"]
[Result "1-0"]
[WhiteElo "2753"]
[BlackElo "2453"]
[TimeControl "180+1"]
[EndTime "9:30:51 PDT"]
[Termination "Igor_Lysyj won by resignation"]

1. d4 {[%clk 0:02:59.3]} 1... Nf6 {[%clk 0:02:59.4]} 2. c4 {[%clk 0:02:59.1]}
2... e6 {[%clk 0:02:59.8]} 3. Nf3 {[%clk 0:02:58.8]} 3... Bb4+ {[%clk
0:02:59.7]} 4. Bd2 {[%clk 0:02:58.4]} 4... Qe7 {[%clk 0:02:59.7]} 5. g3 {[%clk
0:02:55.7]} 5... Bxd2+ {[%clk 0:02:59.7]} 6. Qxd2 {[%clk 0:02:55.7]} 6... Nc6
{[%clk 0:03:00]} 7. e3 {[%clk 0:02:56.2]} 7... d5 {[%clk 0:02:43]} 8. Bg2 {[%clk
0:02:55.5]} 8... Ne4 {[%clk 0:02:40.2]} 9. Qc1 {[%clk 0:02:49.2]} 9... O-O
{[%clk 0:01:58.7]} 10. O-O {[%clk 0:02:48.5]} 10... Rd8 {[%clk 0:01:56.9]} 11.
Nc3 {[%clk 0:02:44.4]} 11... Nf6 {[%clk 0:01:54.8]} 12. Nd2 {[%clk 0:02:40.4]}
12... h6 {[%clk 0:01:36.8]} 13. a3 {[%clk 0:02:34.6]} 13... dxc4 {[%clk
0:01:18.2]} 14. Nxc4 {[%clk 0:02:34]} 14... Bd7 {[%clk 0:01:18.8]} 15. b4 {[%clk
0:02:30]} 15... a6 {[%clk 0:01:18.4]} 16. Qb2 {[%clk 0:02:28.6]} 16... Be8
{[%clk 0:01:18.6]} 17. Rfd1 {[%clk 0:02:28.3]} 17... Rab8 {[%clk 0:01:00.8]} 18.
Rac1 {[%clk 0:02:24.4]} 18... Na7 {[%clk 0:01:00.3]} 19. Na5 {[%clk 0:02:22]}
19... b6 {[%clk 0:00:58]} 20. Nb3 {[%clk 0:02:21.9]} 20... Bc6 {[%clk
0:00:53.5]} 21. e4 {[%clk 0:02:21]} 21... Bb7 {[%clk 0:00:52.3]} 22. Qe2 {[%clk
0:02:15.9]} 22... e5 {[%clk 0:00:33.2]} 23. h3 {[%clk 0:01:57.1]} 23... exd4
{[%clk 0:00:31.7]} 24. Nxd4 {[%clk 0:01:56.4]} 24... Qe5 {[%clk 0:00:21.5]} 25.
f4 {[%clk 0:01:52.3]} 25... Qe8 {[%clk 0:00:17.3]} 26. Nf5 {[%clk 0:01:42.7]}
26... Rxd1+ {[%clk 0:00:15.9]} 27. Rxd1 {[%clk 0:01:42.3]} 27... Rd8 {[%clk
0:00:12.5]} 28. Rxd8 {[%clk 0:01:18.5]} 28... Qxd8 {[%clk 0:00:13.4]} 29. e5
{[%clk 0:01:07.1]} 29... Bc8 {[%clk 0:00:03.2]} 30. Ne3 {[%clk 0:00:59.5]} 30...
Ne8 {[%clk 0:00:02.5]} 31. f5 {[%clk 0:00:51]} 31... c6 {[%clk 0:00:02.3]} 32.
Qd1 {[%clk 0:00:44.2]} 32... Qc7 {[%clk 0:00:01.8]} 33. Qd4 {[%clk 0:00:42.3]}
33... a5 {[%clk 0:00:01.9]} 34. g4 {[%clk 0:00:40.3]} 34... axb4 {[%clk
0:00:02.1]} 35. axb4 {[%clk 0:00:39.7]} 35... c5 {[%clk 0:00:02.7]} 36. bxc5
{[%clk 0:00:39.4]} 36... bxc5 {[%clk 0:00:03.6]} 37. Qf4 {[%clk 0:00:35.8]}
37... Nc6 {[%clk 0:00:03]} 38. Ned5 {[%clk 0:00:33]} 38... Qa5 {[%clk
0:00:03.1]} 39. Qe3 {[%clk 0:00:24.1]} 39... Nd4 {[%clk 0:00:02.9]} 40. Ne7+
{[%clk 0:00:22.6]} 40... Kf8 {[%clk 0:00:02.5]} 41. Nxc8 {[%clk 0:00:22.6]}
41... Qxc3 {[%clk 0:00:02.8]} 42. Qxc3 {[%clk 0:00:22]} 42... Ne2+ {[%clk
0:00:03.1]} 43. Kf2 {[%clk 0:00:22]} 43... Nxc3 {[%clk 0:00:04]} 44. Nb6 {[%clk
0:00:20.9]} 44... Nb5 {[%clk 0:00:03.8]} 45. Nd7+ {[%clk 0:00:20.6]} 45... Ke7
{[%clk 0:00:04.2]} 46. Nxc5 {[%clk 0:00:20.8]} 46... Nec7 {[%clk 0:00:04.4]} 47.
Ke3 {[%clk 0:00:20.3]} 47... Nc3 {[%clk 0:00:04.5]} 48. Kd3 {[%clk 0:00:19.7]}
48... N3d5 {[%clk 0:00:04.7]} 49. Bxd5 {[%clk 0:00:19.3]} 49... Nxd5 {[%clk
0:00:05.6]} 50. Ke4 {[%clk 0:00:19.3]} 50... Nc3+ {[%clk 0:00:05.8]} 51. Kf3
{[%clk 0:00:19.3]} 51... Nd5 {[%clk 0:00:05.6]} 52. Nd3 {[%clk 0:00:19.4]} 52...
Nc3 {[%clk 0:00:05.5]} 53. Nf4 {[%clk 0:00:19.3]} 53... Nb5 {[%clk 0:00:05.2]}
54. Ke3 {[%clk 0:00:18.8]} 54... Nc3 {[%clk 0:00:04.8]} 55. Kf3 {[%clk
0:00:18.4]} 55... Nb5 {[%clk 0:00:04.9]} 56. Nh5 {[%clk 0:00:18.4]} 56... Kf8
{[%clk 0:00:05]} 57. Ke3 {[%clk 0:00:17.2]} 57... g6 {[%clk 0:00:05.4]} 58. Nf6
{[%clk 0:00:16.4]} 58... gxf5 {[%clk 0:00:05.2]} 59. gxf5 {[%clk 0:00:16.3]}
59... Kg7 {[%clk 0:00:05.6]} 60. Nd5 {[%clk 0:00:14.2]} 60... Na3 {[%clk
0:00:04.6]} 61. h4 {[%clk 0:00:14.2]} 61... Nc4+ {[%clk 0:00:04.9]} 62. Kf4
{[%clk 0:00:13.5]} 62... Nd2 {[%clk 0:00:04.9]} 63. h5 {[%clk 0:00:13.5]} 63...
Nc4 {[%clk 0:00:04.6]} 64. f6+ {[%clk 0:00:13.1]} 64... Kf8 {[%clk 0:00:04.4]}
65. Ne3 {[%clk 0:00:13.1]} 65... Nb6 {[%clk 0:00:03.3]} 66. Nf5 {[%clk
0:00:12.2]} 66... Nd5+ {[%clk 0:00:03.7]} 67. Kg3 {[%clk 0:00:12.2]} 67... Nc3
{[%clk 0:00:03.4]} 68. Nxh6 {[%clk 0:00:11.8]} 68... Ne4+ {[%clk 0:00:03.2]} 69.
Kf4 {[%clk 0:00:11.5]} 69... Nc5 {[%clk 0:00:03.4]} 70. Nf5 {[%clk 0:00:10.8]}
70... Ne6+ {[%clk 0:00:04]} 71. Ke3 {[%clk 0:00:10.5]} 71... Kg8 {[%clk
0:00:04.5]} 72. Nd4 {[%clk 0:00:10]} 72... Ng5 {[%clk 0:00:04.3]} 73. Kf4 {[%clk
0:00:09.7]} 73... Nh3+ {[%clk 0:00:04.3]} 74. Kf5 {[%clk 0:00:09.9]} 74... Nf2
{[%clk 0:00:04.1]} 75. e6 {[%clk 0:00:09.5]} 75... fxe6+ {[%clk 0:00:04.7]} 76.
Nxe6 {[%clk 0:00:09.6]} 76... Nd3 {[%clk 0:00:03.7]} 77. Ng5 {[%clk 0:00:08.9]}
77... Kf8 {[%clk 0:00:03.4]} 78. h6 {[%clk 0:00:09.1]} 78... Kg8 {[%clk
0:00:02.6]} 79. h7+ {[%clk 0:00:08.3]} 79... Kh8 {[%clk 0:00:02.6]} 80. f7
{[%clk 0:00:08.3]} 1-0